Cogmind - Beta 16 @@@ ROGUE MODE // 2026.01.19 @ 19:19:13 Player: DreamCore Result: Destroyed by ZR-1ZB(R) with Subdweller Laser Performance ------------- Evolutions (0) 0 Regions Visited (3) 600 Robots Destroyed (29) 145 Value Destroyed (643) 643 Prototype IDs (2) 40 Alien Tech Used (0) 0 Bonus (10) 10 TOTAL SCORE: 1438 Bonus ------- Follower Combat Kills 90 Friendly Fire -80 Cogmind --------- Core Integrity 0/250 Matter 300/300 Energy 74/100 System Corruption 0% Temperature Cool (41) Movement Walking (330) Ox3 Location -10/Subcaves Parts ------- > --- POWER (1) -------- Subdweller Power Source > --- PROPULSION (2) --- Aluminum Leg > --- UTILITY (2) ------ Large Storage Unit > --- WEAPON (2) ------- Advanced Beam Cannon Advanced Beam Cannon > --- INVENTORY (15) --- Subdweller Power Source Light Nuclear Core Aluminum Leg Improved Heat Sink Subdweller Optics Makeshift System Shield EM Pulse Gun Improved Medium Laser Improved Medium Laser Improved Medium Laser Subdweller Laser Grenade Launcher Mining Laser Flamer Hammer Peak State ------------ > --- POWER ------------ Ion Engine > --- PROPULSION ------- Aluminum Leg Carbon-fiber Leg > --- UTILITY ---------- Large Storage Unit Improved Weapon Shielding > --- WEAPON ----------- Advanced Beam Cannon Advanced Beam Cannon > --- INVENTORY -------- Light Nuclear Core Aluminum Leg Aluminum Leg Improved Heat Sink Subdweller Optics Makeshift System Shield EM Pulse Gun Improved Medium Laser Improved Medium Laser Improved Medium Laser Subdweller Laser Grenade Launcher Mining Laser Flamer Hammer [Rating: 18] Favorites ----------- Power Ion Engine Engine Ion Engine Propulsion Aluminum Leg Leg Aluminum Leg Utility Large Storage Unit Device Seismic Detector Storage Large Storage Unit Processor Visual Processing Unit Protection Improved Weapon Shielding Weapon Advanced Beam Cannon Energy Gun EM Pulse Gun Energy Cannon Advanced Beam Cannon Ballistic Gun Assault Rifle Launcher Grenade Launcher Special Weapon Flamer Impact Weapon Hammer Build | -11 -10 -10 -10 ------- Run | Yrd Mat Min Sub Slots Evolved . | . . . . Power . | . . . . Propulsion . | . . . . Utility . | . . . . Weapon . | . . . . Parts Attached 27 | . 8 5 14 Power 6 | . 1 1 4 Engine 6 | . 1 1 4 Core . | . . . . Reactor . | . . . . Propulsion 6 | . . 1 5 Treads . | . . . . Leg 6 | . . 1 5 Wheel . | . . . . Hover . | . . . . Flight . | . . . . Utility 7 | . 4 2 1 Device 3 | . 2 1 . Storage 1 | . 1 . . Processor 1 | . 1 . . Hackware . | . . . . Protection 2 | . . 1 1 Artifact . | . . . . Weapon 8 | . 3 1 4 Energy Gun 3 | . 2 1 . Energy Cannon 2 | . 1 . 1 Ballistic Gun . | . . . . Ballistic Cannon . | . . . . Launcher 1 | . . . 1 Special Weapon 1 | . . . 1 Impact Weapon 1 | . . . 1 Slashing Weapon . | . . . . Piercing Weapon . | . . . . Special Melee Weapon . | . . . . Unidentified Prototypes 2 | . 2 . . Parts Lost 6 | . . . 6 Power 1 | . . . 1 Propulsion 3 | . . . 3 Utility 2 | . . . 2 Weapon . | . . . . Highest Loss Streak 2 | . . . 2 To Critical Strikes . | . . . . Average Backups 14 | . 13 14 14 Power 1 | . 1 1 1 Propulsion 1 | . 2 1 1 Utility 3 | . 3 5 3 Weapon 7 | . 6 7 8 Tool/Special . | . . . . Unused Backups 27 | . 7 4 16 Power 4 | . 2 . 2 Propulsion 4 | . . 2 2 Utility 8 | . . 1 7 Weapon 11 | . 5 1 5 Tool/Special . | . . . . Average Slot Usage (%) 99 | . 97 100 99 Engine 13 | . 14 14 13 Leg 27 | . 28 28 27 Device 5 | . 10 12 . Storage 14 | . 14 14 14 Protection 8 | . . 1 14 Energy Gun 5 | . 6 14 . Energy Cannon 17 | . 13 14 20 Ballistic Gun 1 | . 8 . . Launcher 3 | . . . 5 Peak Build Rating 18 | . 12 16 18 Average Rating 14 | . 10 12 16 On Entrance 9 | 6 6 11 16 Avg Prop Armor Cover (%) . | . . . . Naked Turns . | . . . . Heaviest Build 35 | 11 32 33 35 Greatest Support 26 | 20 26 20 25 Greatest Overweight (x) 3 | . 1 1 3 Average Overweight (x) 1 | . . 1 1 Largest Inventory Capacity 15 | . 15 15 15 Average Capacity 14 | . 14 15 15 Most Carried 15 | . 15 15 15 Average Carried 14 | . 13 14 14 Final Capacity 15 | 8 15 15 15 Final Carried 15 | 6 15 15 15 Class Distribution -------------------- 100% | Mutant Dominant Class ---------------- Mutant | -10/Materials Mutant | -10/Mines Mutant | -10/Subcaves Resources | -11 -10 -10 -10 ----------- Run | Yrd Mat Min Sub Matter Collected 698 | 200 92 23 383 Remotely . | . . . . Salvage Created 819 | . 220 162 437 Parts 56 | . 13 11 32 Haulers Intercepted 2 | . 2 . . Recyclers Shooed 1 | . . 1 . Parts Field Recycled . | . . . . Retrieved Matter . | . . . . Parts Self-Destructed 11 | . . . 11 Prevented . | . . . . Parts Restored . | . . . . Kills | -11 -10 -10 -10 ------- Run | Yrd Mat Min Sub Combat Hostiles Destroyed 23 | . 3 6 14 Guns 4 | . 2 2 . Cannons 9 | . 1 2 6 AOE 9 | . . 2 7 Classes Destroyed 6 | . 4 1 1 Hauler 2 | . 2 . . Operator 1 | . 1 . . Watcher 2 | . 2 . . Swarmer 11 | . 3 4 4 Grunt 3 | . . 2 1 Subdweller 10 | . . . 10 Best Kill Streak 4 | . 4 4 4 Combat Bots Only 4 | . 3 4 4 Max Kills in Single Turn 3 | . 1 2 3 Gunslinging . | . . . . Exploded 3 | . . 2 3 Melee . | . . . . Uniques/NPCs Destroyed . | . . . . Combat | -11 -10 -10 -10 -------- Run | Yrd Mat Min Sub Hostile Shots Fired 151 | . 25 18 108 Missed 59 | . 7 2 50 Hits 92 | . 18 16 58 Projectile 92 | . 18 16 58 AOE 7 | . . . 7 Critical Strikes 2 | . . . 2 Damage Taken 1369 | . 137 147 1085 Core 255 | . 52 34 169 Absorbed by Shields . | . . . . Redirected to Shielding 128 | . . . 128 Core Remaining (%) 100 | 100 . . . Volleys Fired 66 | . 16 8 42 Largest 2 | . 2 2 2 Hottest 136 | . 108 108 136 Shots Fired 114 | . 32 16 66 Gun 26 | . 16 8 2 Cannon 66 | . 16 8 42 Launcher 22 | . . . 22 Special . | . . . . Kinetic 8 | . 8 . . Thermal 66 | . 16 8 42 Explosive 22 | . . . 22 Electromagnetic 18 | . 8 8 2 Robot Hit Streak 8 | . 6 5 8 Robot Miss Streak 5 | . 5 2 3 Penetration Max . | . . . . Secondary Targets . | . . . . Shots Hit Robots 53 | . 15 9 29 Core Hits 43 | . 9 7 27 Critical Kills 1 | . . . 1 Critical Parts Destroyed . | . . . . Critical Strikes 2 | . . . 2 Meltdown 1 | . . . 1 Corrupt 1 | . . . 1 Melee Attacks 11 | . . . 11 Impact 11 | . . . 11 Slashing . | . . . . Piercing . | . . . . Sneak Attacks . | . . . . Combat Hostiles . | . . . . Follow-up Attacks . | . . . . Damage Inflicted 1741 | . 275 252 1214 Guns 161 | . 74 60 27 Cannons 699 | . 182 82 435 Explosions 839 | . . 87 752 Melee . | . . . . Ramming 42 | . 19 23 . Kinetic 31 | . 31 . . Thermal 917 | . 182 169 566 Explosive 621 | . . . 621 Electromagnetic 130 | . 43 60 27 Impact . | . . . . Slashing . | . . . . Piercing . | . . . . Highest Corruption . | . . . . Average Corruption . | . . . . Corruption Purged . | . . . . Corruption Blocked . | . . . . Overload Shots . | . . . . Overflow Damage . | . . . . Projectiles . | . . . . Explosions . | . . . . Melee . | . . . . Knockbacks . | . . . . Impact . | . . . . Kinetic . | . . . . Secondary . | . . . . Self-Inflicted Damage 34 | . . . 34 Shots 3 | . . . 3 Rammed . | . . . . Targets Rammed 10 | . 4 6 . Kicked 10 | . 4 6 . Crushed . | . . . . Highest Temperature 288 | . 54 288 63 Average Temperature 51 | . 22 122 23 Received Heat Transfer 282 | . . 18 264 Siege Activations . | . . . . Martial Activations . | . . . . Shielding Activations . | . . . . Robots Disrupted . | . . . . Combat Hostiles . | . . . . Robots Corrupted . | . . . . Combat Hostiles . | . . . . Parts Fried . | . . . . Impact Corruptions . | . . . . Robots Melted 1 | . . . 1 Combat Hostiles 1 | . . . 1 Parts Melted 1 | . . . 1 Heat Transferred 1608 | . 333 248 1027 Parts Sabotaged . | . . . . Parts Stolen . | . . . . Parts Stripped . | . . . . Power Chain Reactions 2 | . . 1 1 Alert | -11 -10 -10 -10 ------- Run | Yrd Mat Min Sub Maximum Alert Level . | . . . . Low Security (%) 100 | . 100 100 . Level 1 . | . . . . Level 2 . | . . . . Level 3 . | . . . . Level 4 . | . . . . Level 5 . | . . . . High Security . | . . . . Max Security . | . . . . Peak Influence 110 | . 84 110 . Initial . | . . . . Average 16 | . 13 17 . Influence Increases 560 | . 133 182 245 Destroy 0b10 Robot/C 260 | . 60 120 80 Destroy 0b10 Robot/NC 25 | . 25 . . Destroy Leader 38 | . 18 20 . Allied During Kill 3 | . . 3 . Successful Hack 15 | . 15 . . Destroy Structure 9 | . . 9 . Lose Combat Pursuer 210 | . 15 30 165 Influence Decreases 560 | . 132 183 245 Entered New Map 1 | . . 1 . Time Decay 519 | . 132 162 225 Lost Part 20 | . . . 20 Lost Ally 20 | . . 20 . Squads Dispatched 3 | . 2 1 . Investigation 1 | . . 1 . Extermination . | . . . . Reinforcement 2 | . 2 . . Assault . | . . . . Garrison . | . . . . Intercept . | . . . . Searches Triggered . | . . . . Construction Impeded . | . . . . Haulers Reinforced . | . . . . Active Scanning Responses . | . . . . Cargo Convoy Interrupts . | . . . . Stealth | -11 -10 -10 -10 --------- Run | Yrd Mat Min Sub Distress Signals 1 | . 1 . . Communications Jammed . | . . . . Distress Signals . | . . . . Times Spotted 45 | . 11 8 26 Peak Tracking Total 6 | . 5 6 4 Tactical Retreats 6 | . 1 1 4 Traps | -11 -10 -10 -10 ------- Run | Yrd Mat Min Sub Traps Triggered . | . . . . Indirectly . | . . . . Trap Hack Attempts . | . . . . Triggered . | . . . . Disarmed . | . . . . Reprogrammed . | . . . . Reused . | . . . . Traps Extracted . | . . . . Installed . | . . . . Triggered . | . . . . Machines | -11 -10 -10 -10 ---------- Run | Yrd Mat Min Sub Machines Disabled . | . . . . Max in Single Turn . | . . . . Machines Repaired . | . . . . Machines Dismantled . | . . . . Machines Sabotaged . | . . . . Overloaded Fab Kills . | . . . . Hacking | -11 -10 -10 -10 --------- Run | Yrd Mat Min Sub Machines Accessed 4 | . 3 1 . Terminals 1 | . 1 . . Fabricators . | . . . . Repair Stations . | . . . . Recycling Units 2 | . 2 . . Scanalyzers . | . . . . Garrison Access . | . . . . Total Hacks 15 | . 14 1 . Successful 8 | . 7 1 . Failed 7 | . 7 . . Catastrophic 1 | . 1 . . Database Lockouts . | . . . . Manual 14 | . 14 . . Terminals 3 | . 3 . . Fabricators . | . . . . Repair Stations . | . . . . Recycling Units 11 | . 11 . . Scanalyzers . | . . . . Garrison Access . | . . . . Terminal Hacks 2 | . 1 1 . Open Door 1 | . . 1 . Recall Reinforcements 1 | . 1 . . Fabricator Hacks . | . . . . Repair Station Hacks . | . . . . Recycling Unit Hacks 2 | . 2 . . Report Inventory 2 | . 2 . . Scanalyzer . | . . . . Garrison Access Hacks . | . . . . Unauthorized Hacks 4 | . 4 . . Terminals . | . . . . Fabricators . | . . . . Repair Stations . | . . . . Recycling Units 4 | . 4 . . Reject 2 | . 2 . . Mask 2 | . 2 . . Scanalyzers . | . . . . Garrison Access . | . . . . Data Cores Recovered . | . . . . Used . | . . . . Hacking Detections 1 | . 1 . . Full Trace Events . | . . . . Feedback Events . | . . . . Feedback Blocked . | . . . . Robot Schematics Acquired . | . . . . Robots Built . | . . . . Authchips . | . . . . Time . | . . . . Total Robot Build Rating . | . . . . Part Schematics Acquired . | . . . . Parts Built . | . . . . Authchips . | . . . . Time . | . . . . Total Part Build Rating . | . . . . Part Studies Acquired . | . . . . Parts Repaired . | . . . . Time . | . . . . Parts Recycled . | . . . . Recycled Matter . | . . . . Retrieved Matter . | . . . . Retrieved Components . | . . . . Parts Scanalyzed . | . . . . Part Schematics Acquired . | . . . . Parts Damaged . | . . . . Bothacking | -11 -10 -10 -10 ------------ Run | Yrd Mat Min Sub Used RIF Installer . | . . . . Robots Hacked . | . . . . Non-combat . | . . . . Combat . | . . . . Robot Hacks Applied . | . . . . Relay Couplers Released . | . . . . Fabnet Peak Effective % . | . . . . Robots Rewired . | . . . . Allies Hacked . | . . . . Hacks Repelled . | . . . . Allies | -11 -10 -10 -10 -------- Run | Yrd Mat Min Sub Total Allies 6 | . . 6 . Largest Group 4 | . . 4 4 Highest-Rated Group 71 | . . 71 71 Highest-Rated Ally 31 | . . 31 31 Total Orders . | . . . . Ally Attacks 23 | . . . 23 Total Damage 312 | . . . 312 Kills 3 | . . . 3 Allies Corrupted . | . . . . Allies Melted . | . . . . Intel | -11 -10 -10 -10 ------- Run | Yrd Mat Min Sub Active Infowar (turns) 1198 | . 92 1106 . Optics 92 | . 92 . . Seismic 1106 | . . 1106 . Robot Analysis Total . | . . . . Derelict Logs Recovered 3 | . . 2 1 Drone Launches . | . . . . Drone Recoveries . | . . . . Exploration | -11 -10 -10 -10 ------------- Run | Yrd Mat Min Sub Turns Passed 4786 | . 837 1236 2713 Spaces Moved 2327 | 1 384 612 1330 Core . | . . . . Treads . | . . . . Legs 2327 | 1 384 612 1330 Wheels . | . . . . Hover . | . . . . Flight . | . . . . Fastest Speed 120 | 120 120 190 190 Average Speed 190 | 120 189 190 190 Slowest Speed 330 | 120 190 190 330 Overloaded Moves . | . . . . Propulsion Burnouts . | . . . . Robots Hopped . | . . . . Potential Cave-ins . | . . . . Cave-ins Triggered . | . . . . Exploration Rate (%) 47 | 2 52 84 52 Regions Visited 3 Branch Regions 2 Pre-discovered Areas 2 | . . . 2 Known Exits Taken . | . . . . Unknown Exits Taken 3 | 1 1 1 . Scrap Searched 9 | . . 1 8 Spaces Dug 17 | . . . 17 Terrain Destroyed 142 | . . 14 128 Melee . | . . . . Projectile . | . . . . AOE 142 | . . 14 128 Terrain Rammed . | . . . . Walls Destroyed . | . . . . Machines Disabled . | . . . . Actions | -11 -10 -10 -10 --------- Run | Yrd Mat Min Sub Total 2558 | . 462 667 1429 Wait 52 | . 23 27 2 Move 2324 | . 383 611 1330 Hop . | . . . . Pick Up 34 | . 19 3 12 Fast Attach 2 | . . 1 1 Attach 5 | . 2 . 3 Detach . | . . . . Swap 23 | . 6 4 13 Drop 31 | . 9 7 15 Fire 66 | . 16 8 42 Melee 11 | . . . 11 Ram . | . . . . Kick 10 | . 4 6 . Crush . | . . . . Escape Stasis . | . . . . Rewire . | . . . . Trap . | . . . . Miscellaneous . | . . . . Route ------- -11/Scrapyard -10/Materials (discovered 3 exits: [*Mat] / *Min / [*Sub]) -10/Mines (discovered 3 exits: [*Mat x2] / [*Sub]) -10/Subcaves (discovered 1 exit: [*Rec]) History --------- Turn | Location | Event 1 | -11/Scrapyard | Discovered new exit (range 0) 1 | -11/Scrapyard | Entered Materials 286 | -10/Materials | Discovered new exit (range 14) 313 | -10/Materials | Build established: Mutant 456 | -10/Materials | Discovered new exit (range 8) 814 | -10/Materials | Discovered new exit (range 8) 838 | -10/Materials | Entered Mines 857 | -10/Mines | Found a hidden stash of uninstalled traps 919 | -10/Mines | Received a Mining Laser from a helpful Derelict 1308 | -10/Mines | Discovered new exit (range 9) 1413 | -10/Mines | Discovered new exit (range 11) 1714 | -10/Mines | Assisted by bots powering up and referring to "LRC-V3" 1739 | -10/Mines | Discovered new exit (range 5) 1936 | -10/Mines | Learned 2 Materials zone layouts 1940 | -10/Mines | Learned Materials stockpile data 1943 | -10/Mines | Met a Derelict shopkeep closing up shop 2074 | -10/Mines | Entered Subcaves 2074 | -10/Subcaves | Accompanied by 4 allies 2075 | -10/Subcaves | Approached by a straggling Scientist 2076 | -10/Subcaves | Learned location of Zion (-7) 2076 | -10/Subcaves | Met a Zionite searching for "candidates" 2079 | -10/Subcaves | Ambushed by Subdwellers from Twisted Machinery 2079 | -10/Subcaves | Led the pair of lost Derelicts to an unsafe place 2504 | -10/Subcaves | Ambushed by Subdweller buried in earth 2506 | -10/Subcaves | Ambushed by Subdweller buried in earth 2753 | -10/Subcaves | A swath of the cavern ceiling suddenly collapsed 2786 | -10/Subcaves | Ambushed by Subdweller buried in earth 2790 | -10/Subcaves | Ambushed by Subdweller buried in earth 3203 | -10/Subcaves | Discovered new exit (range 14) 3237 | -10/Subcaves | Core integrity fell below 50% 3672 | -10/Subcaves | Shifting Twisted Machinery released Flamer 4052 | -10/Subcaves | Disturbed a concealed Subdweller 4059 | -10/Subcaves | Core integrity fell below 20% 4390 | -10/Subcaves | Shifting Twisted Machinery released Spk. Treads 4391 | -10/Subcaves | Shifting Twisted Machinery released Battle Rifle 4781 | -10/Subcaves | Ambushed by Subdweller buried in earth 4783 | -10/Subcaves | Ambushed by Subdweller buried in earth 4787 | -10/Subcaves | Destroyed by ZR-1ZB(R) with Subdweller Laser Last Messages --------------- 04094_ Found Sub. Beam Cannon. 04094_ Found Sub. Power Source. 04094_ Found 47 Matter. 04104_ Searching scrap... 04104_ Found Flamer. 04104_ Found Battle Rifle. 04104_ Found 52 Matter. 04169_ Subatomizers dissect the Battle Rifle. Spk. Treads falls loose from the Twisted Machinery. Battle Rifle falls loose from the Twisted Machinery. 04391_ 3P-EV2(R): "SUBMAD!" 04399_ 3P-EV2(R) destroyed. 04775_ UT-JH3(R): "SUBHATE!" 04781_ Imp. Weapon Shielding destroyed. 04782_ XA-245(R): "THANKSYOU!" 04783_ XA-245(R) destroyed. 04783_ Aluminum Leg destroyed. 04784_ ZR-1ZB(R): "ARGHSUB!" 04784_ UT-JH3(R) destroyed. 04785_ Sub. Power Source shoots sparks and powers down. Map ----- +----------------------------------------------------+ | ?????????????????????????????????????????????????? | | ?????????????????????????????????????????????????? | | ?????????????????????????????????????????????????? | | ?????????????????????????????????????????????????? | | ?????????????????????????????????????????????????? | | ?????????????????????????????????????????????????? | | ?????????????????????????????????????????????????? | | ?????????????????????????????????????????????????? | | ?????????????????????????????????????????????????? | | ?????????????????????????????????????????????????? | | ?????????????????????????????????????????????????? | | ?????????????????????????????????????????????????? | | ?????????????????????????????????????????????????? | | ?????????????????????????????????????????????????? | | ?????????????????????????????????????????????????? | | ?????????????????????????????????????????????????? | | ??????????????????????????????#??????????????????? | | ????????????????????????????? #????????####??????? | | ????????????????????????????? #???????## ##?????? | | ????????????????????######## #?###??## ##????? | | ???????????? # ????# ;;;#; ### #??# #????? | | ??????????? !;;;??# ;## ##?# #????? | | ???????????# &%! ;;# !& ## #?#### #????? | | ???????????# &&& &%* ## ##??## ##????? | | ???????????# R= ;## #??# #?????? | | ???????????# @ ;## #### #??#### | | ??????????# ; ## #??# | | ?????????? # ;# #??# | | ??????????? ???# ;# ##??# | | ??????????? ???????# ##??## | | ????????????????????### ### ###### | | ?????????????????????? ?# ## ## | | ????????????????????? #?## % ## | | ????????????????????####???### | | ?????????????????????????????## ##### %# | | ??????????????????????????????###???### ##### | | ??????????????????????????????????????# ##??? | | ???????????????????????????????????##### #??? | | ?????????????? " ????????####??##### # # ##??? | | ?????????????""""???????## #### % #??? | | ????????????""""#???###?# ##?? | | ????????? """"" ##### ### ## # ##? | | ?????????#""""" """ ## ####### ##### #? | | ?????????#""""" """"" ###???#####???## ## | | ????????## """ ##???????????## | | ????????#"""""""""" #####????????# | | ???????# ! ###??????## ### | | ???????# #### =!& ## %##?????## ##? | | ??????????????# "%[ ###### ##????# #? | | ?????????????## !"&= ###### #????## ## | +----------------------------------------------------+ Best States ------------- Heat Dissipation 35 Energy Generation 15 Energy Capacity 250 Matter Stores 300 Matter Capacity 300 Sight Range 18 Terrain Scan Density 10 Additional Mass Support 6 Armor Coverage 150 Weapon Shielding 66 Evasion (%) 40 Item Schematics ----------------- None Robot Schematics ------------------ None Fabricated ------------ Nothing Repaired ---------- Nothing Studied --------- None Alien Tech Used ----------------- None Achievements -------------- Do Not Disturb Challenges ------------ None Game ------ Seed DisruptorCooledSplitter Manual? 0 Play Time 00:34:24 Cumulative 67.4 hours Start 2026.01.19 @ 18:44:25 End 2026.01.19 @ 19:19:13 Sessions 1 Manual Loads 0 Difficulty Rogue Special Mode None Game No. 80 Rogue 80 Adventurer 0 Explorer 0 Win Type - Total 1 Types 1/0/0/0/0/0/0/0/0/0 Lore% 26 Gallery% 35 Achievement% 27 Wizard Run 0 Options --------- Layout 0 ASCII 0 Keyboard 0 Movement Mouse Keybinds 0 Fullscreen 0 Font 16/SmallcapsGlow Map View 88x55 Zoom Use 0% Tactical HUD 1 Map Filters NONE Filters NONE Steam 1 RUN: c2c14861-1345-45e0-88f4-d4dc95107720